bitfinex/quotes_SOLUSD_20251223
["timestamp","ask_amount","ask_price","bid_price","bid_amount"]
[1766500297285,7.78320766,123.41,123.37,30.66880313]
[1766500297596,7.78320766,123.41,123.37,14.78]
[1766500297803,8.44320766,123.38,123.34,8.10752064]
[1766500297972,7.78320766,123.37,123.35,14.78]
[1766500298168,28.3586337,123.42,123.35,14.78]
[1766500298373,7.78320766,123.42,123.37,7.78320766]
[1766500298599,8.44320766,123.4,123.35,7.78320766]
[1766500298804,7.78320766,123.41,123.36,7.78320766]
[1766500299106,0.66,123.42,123.37,14.8]
[1766500299314,11.09767296,123.44,123.38,0.69]
[1766500299595,7.78320766,123.44,123.38,0.69]
[1766500300093,7.78320766,123.43,123.39,14.8]
[1766500300295,7.78320766,123.46,123.41,7.78320766]
[1766500300492,7.78320766,123.46,123.42,14.8]
[1766500300687,8.44320766,123.45,123.42,14.8]
[1766500300892,7.78320766,123.44,123.42,14.8]
[1766500301089,0.66,123.45,123.42,14.8]
[1766500301289,7.78320766,123.44,123.4,14.8]
[1766500301481,7.78320766,123.44,123.4,22.90368452]
[1766500302099,7.78320766,123.43,123.4,14.8]
[1766500302295,7.78320766,123.43,123.39,0.69]
[1766500302296,7.78320766,123.41,123.36,27.01703262]
[1766500302468,7.78320766,123.41,123.37,22.58320766]
[1766500302878,10.43767296,123.45,123.4,8.47320766]
[1766500303092,0.66,123.5,123.41,8.79256795]
[1766500303292,8.44320766,123.47,123.42,7.78320766]
[1766500303500,8.44320766,123.47,123.43,14.8]
[1766500303676,7.78320766,123.46,123.43,14.8]
[1766500304000,7.78320766,123.44,123.41,14.8]
[1766500304393,0.66,123.45,123.41,30.68618428]
[1766500304576,10.43767296,123.46,123.41,30.68618428]
[1766500304898,0.66,123.46,123.42,7.78320766]
[1766500305075,8.44320766,123.47,123.42,7.78320766]
[1766500305276,8.44320766,123.47,123.42,15.88550579]
[1766500305801,0.66,123.47,123.43,7.78320766]
[1766500306000,0.66,123.47,123.44,14.8]
[1766500306597,8.44320766,123.49,123.44,23.27320766]
[1766500306801,0.66,123.49,123.44,23.27320766]
[1766500307098,8.44320766,123.45,123.42,14.8]
[1766500307287,8.44320766,123.45,123.4,15.88672791]
[1766500307472,8.44320766,123.45,123.41,22.90297742]
[1766500307672,8.09992832,123.46,123.39,8.10424521]
[1766500307673,8.44320766,123.43,123.39,8.10424521]
[1766500307876,8.44320766,123.43,123.39,22.90424521]
[1766500308177,0.66,123.43,123.39,22.58320766]
[1766500308398,8.44320766,123.43,123.39,22.9039155]
[1766500308587,0.66,123.4,123.36,8.10635538]
[1766500308785,0.66,123.42,123.37,22.58320766]
[1766500308992,8.44320766,123.42,123.37,22.58320766]
[1766500309294,0.66,123.42,123.37,30.68846858]
[1766500309479,8.44320766,123.42,123.37,30.68846858]
[1766500309876,7.78320766,123.43,123.38,7.78320766]
[1766500310080,8.44320766,123.43,123.38,7.78320766]
[1766500311195,8.44320766,123.43,123.38,15.88771822]
[1766500311391,7.78320766,123.44,123.39,7.78320766]
[1766500311703,0.66,123.44,123.39,7.78320766]
[1766500311906,7.78320766,123.43,123.38,36.84032155]
[1766500312083,7.78320766,123.43,123.39,14.8]
[1766500312285,8.44320766,123.43,123.39,14.8]
[1766500312485,7.78320766,123.41,123.37,8.10551422]
[1766500312694,7.78320766,123.41,123.38,14.8]
[1766500313006,7.78320766,123.4,123.38,14.8]
[1766500314380,7.78320766,123.4,123.36,8.1060953]
[1766500314593,8.76196817,123.43,123.37,23.27320766]
[1766500314803,0.66,123.42,123.37,15.49]
[1766500315013,8.44320766,123.42,123.37,31.37868063]
[1766500315530,0.66,123.42,123.37,51.64292639]
[1766500315820,0.66,123.42,123.38,7.78320766]
[1766500316497,0.66,123.42,123.39,7.78320766]
[1766500316696,0.66,123.51,123.42,0.69]
[1766500316914,8.44320766,123.51,123.46,7.78320766]
[1766500317094,0.66,123.5,123.47,7.78320766]
[1766500317516,8.44320766,123.52,123.48,8.09847748]
[1766500317714,15.8791101,123.52,123.47,15.88207651]
[1766500317889,16.5391101,123.52,123.47,15.88207651]
[1766500318091,0.66,123.52,123.48,7.78320766]
[1766500318295,7.78320766,123.53,123.49,22.58320766]
[1766500318496,0.66,123.54,123.49,22.58320766]
[1766500318729,0.66,123.53,123.49,22.58320766]
[1766500319104,8.09347339,123.56,123.5,7.78320766]
[1766500319312,0.66,123.55,123.51,7.78320766]
[1766500319506,0.66,123.55,123.52,14.8]
[1766500320299,8.75061488,123.6,123.54,7.78320766]
[1766500320499,7.78320766,123.58,123.53,0.69]
[1766500320738,7.78320766,123.55,123.52,14.8]
[1766500320903,10.43767296,123.57,123.5,8.09692204]
[1766500321237,0.66,123.53,123.48,7.78320766]
[1766500321407,8.44320766,123.52,123.49,14.8]
[1766500321722,8.44320766,123.54,123.49,30.68094939]
[1766500321939,0.66,123.52,123.46,10.43767296]
[1766500322181,8.44320766,123.51,123.46,7.78320766]
[1766500322344,8.44320766,123.51,123.47,14.8]
[1766500322660,0.66,123.51,123.48,7.78320766]
[1766500322844,0.66,123.51,123.47,22.58320766]
[1766500323045,8.44320766,123.51,123.47,14.8]
[1766500323464,30.67519451,123.54,123.47,14.8]
[1766500323671,30.67519451,123.54,123.46,7.78320766]
[1766500323672,7.78320766,123.5,123.46,7.78320766]
[1766500323851,8.44320766,123.48,123.45,14.8]
[1766500324170,7.78320766,123.47,123.42,8.7918274]
[1766500324374,8.44320766,123.47,123.43,14.78]
[1766500324543,0.66,123.47,123.4,0.69]
[1766500324861,8.44320766,123.44,123.39,8.10396128]
[1766500325059,0.66,123.47,123.41,7.78320766]
[1766500325262,8.44320766,123.45,123.41,14.78]
[1766500325648,38.46769268,123.48,123.42,8.47320766]
[1766500325649,10.43767296,123.48,123.42,8.47320766]
[1766500325957,8.44320766,123.48,123.43,8.47320766]
[1766500326165,7.78320766,123.46,123.41,8.102865]
[1766500326465,8.44320766,123.44,123.4,22.88360956]
[1766500326849,0.72,123.43,123.4,14.78]
[1766500327048,11.15767296,123.45,123.4,23.24320766]
[1766500327249,7.78320766,123.44,123.39,8.1041682]
[1766500327470,8.50320766,123.44,123.4,22.90368994]
[1766500328265,8.50320766,123.44,123.4,14.8]
[1766500328651,10.43767296,123.45,123.4,23.58328367]
[1766500328847,10.43767296,123.51,123.44,8.46320766]
[1766500329068,0.72,123.5,123.46,7.78320766]
[1766500329245,7.78320766,123.52,123.48,7.78320766]
[1766500329442,7.78320766,123.52,123.48,14.8]
[1766500329683,8.81603169,123.52,123.47,8.46320766]
[1766500329850,7.78320766,123.51,123.46,8.09963369]
[1766500330052,15.87923935,123.52,123.47,22.58320766]
[1766500330583,0.72,123.51,123.47,14.8]
[1766500330747,0.72,123.51,123.47,22.58320766]
[1766500331173,0.72,123.51,123.47,14.8]
[1766500331380,0.72,123.51,123.47,22.58320766]
[1766500331557,7.78320766,123.52,123.47,30.68233201]
[1766500331758,0.72,123.5,123.47,14.8]
[1766500332077,8.50320766,123.5,123.45,30.68344108]
[1766500332955,16.6003897,123.5,123.45,14.78]
[1766500333176,0.72,123.5,123.46,7.78320766]
[1766500333378,0.72,123.5,123.45,31.34350912]
[1766500333579,7.78320766,123.49,123.45,14.78]
[1766500333753,0.72,123.47,123.44,14.78]
[1766500334169,0.72,123.45,123.4,8.10347235]
[1766500334368,0.72,123.45,123.36,40.5306915]
[1766500334369,8.50320766,123.41,123.37,14.78]
[1766500334872,7.78320766,123.45,123.4,7.78320766]
[1766500335074,8.50320766,123.46,123.41,7.78320766]
[1766500335278,8.50320766,123.46,123.4,0.68]
[1766500335485,8.50320766,123.44,123.4,14.78]
[1766500335954,7.78320766,123.42,123.37,8.10544276]
[1766500336154,8.50320766,123.42,123.39,14.78]
[1766500336361,0.72,123.42,123.39,14.78]
[1766500336676,0.72,123.44,123.39,23.24320766]
[1766500336877,8.50320766,123.44,123.39,31.34702449]
[1766500337077,7.78320766,123.43,123.39,23.56381683]
[1766500337279,8.50320766,123.42,123.37,18.54316848]
[1766500337581,7.78320766,123.41,123.38,14.8]
[1766500338088,7.78320766,123.4,123.36,8.78608075]
[1766500338252,7.78320766,123.4,123.37,14.8]
[1766500339257,0.72,123.37,123.32,8.10855297]
[1766500339464,7.78320766,123.36,123.33,14.8]
[1766500339663,18.5417054,123.4,123.33,22.58320766]
[1766500339871,10.43767296,123.4,123.35,0.68]
[1766500340184,15.94553432,123.4,123.35,5.46786136]
[1766500340392,0.72,123.4,123.35,5.46786136]
[1766500340679,5.50786136,123.4,123.35,5.46786136]
[1766500340886,0.72,123.4,123.36,22.90635538]
[1766500341178,5.50786136,123.37,123.3,0.88]
[1766500341484,4.78786136,123.35,123.32,14.8]
[1766500342059,10.43767296,123.39,123.32,19.58786136]
[1766500342281,5.50786136,123.4,123.35,12.89469398]
[1766500342458,5.50786136,123.4,123.36,14.8]
[1766500342459,4.78786136,123.4,123.36,14.8]
[1766500342661,4.78786136,123.39,123.36,14.8]
[1766500342960,4.78786136,123.37,123.34,22.90744748]
[1766500343175,4.78786136,123.37,123.34,14.8]
[1766500343372,4.78786136,123.35,123.32,14.8]
[1766500343560,4.78786136,123.35,123.32,22.90882924]
[1766500343888,8.10584744,123.37,123.3,0.2]
[1766500343889,4.78786136,123.33,123.3,0.2]
[1766500344092,4.78786136,123.31,123.29,0.2]
[1766500344278,4.78786136,123.3,123.26,0.68]
[1766500344471,4.78786136,123.29,123.25,23.11347748]
[1766500344781,4.78786136,123.27,123.25,15.0]
[1766500344958,4.78786136,123.28,123.25,23.11352791]
[1766500345362,4.78786136,123.26,123.25,15.0]
[1766500345665,4.78786136,123.26,123.25,0.2]
[1766500345869,8.83106577,123.29,123.25,0.2]
[1766500346066,5.50786136,123.29,123.25,8.31348824]
[1766500346273,5.50786136,123.33,123.28,4.78786136]
[1766500346578,15.94553432,123.32,123.27,4.78786136]
[1766500346790,15.22553432,123.32,123.28,14.8]
[1766500346961,5.50786136,123.33,123.28,19.58786136]
[1766500347361,0.72,123.32,123.27,0.68]
[1766500347563,4.78786136,123.31,123.28,14.8]
[1766500347770,5.50786136,123.31,123.28,14.8]
[1766500347984,0.72,123.31,123.28,14.8]
[1766500348370,4.78786136,123.33,123.28,20.26786136]
[1766500348566,5.50786136,123.36,123.3,5.46786136]
[1766500348764,5.50786136,123.36,123.31,20.26786136]
[1766500348970,5.50786136,123.36,123.32,8.10898475]
[1766500349172,10.43767296,123.37,123.32,8.78898475]
[1766500349373,4.78786136,123.37,123.32,13.57684611]
[1766500349782,0.72,123.37,123.32,8.78898475]
[1766500350089,5.50786136,123.37,123.32,13.57684611]
[1766500350286,4.78786136,123.36,123.32,0.68]
[1766500350485,4.78786136,123.35,123.29,0.68]
[1766500350686,4.78786136,123.35,123.31,14.8]
[1766500350687,4.78786136,123.34,123.31,14.8]
[1766500351093,15.94553432,123.35,123.31,14.8]
[1766500351275,5.50786136,123.33,123.29,14.8]
[1766500351675,4.78786136,123.33,123.29,22.91092047]
[1766500351872,4.78786136,123.33,123.29,14.8]
[1766500352094,5.50786136,123.32,123.28,14.8]
[1766500352305,5.50786136,123.31,123.28,14.8]
[1766500352587,10.43767296,123.33,123.29,5.46786136]
[1766500352797,0.72,123.34,123.29,13.57822301]
[1766500352977,5.50786136,123.34,123.29,13.57822301]
[1766500353178,4.78786136,123.33,123.28,12.89925851]
[1766500353496,4.78786136,123.3,123.26,14.8]
[1766500353696,4.78786136,123.29,123.26,14.8]
[1766500354268,15.22553432,123.31,123.26,15.48]
[1766500354472,15.22553432,123.31,123.27,8.11212482]
[1766500354902,5.50786136,123.32,123.27,25.74841148]
[1766500355195,5.50786136,123.34,123.29,5.46786136]
[1766500355506,4.78786136,123.35,123.3,20.26786136]
[1766500355807,4.78786136,123.35,123.31,14.8]
[1766500357173,5.49786136,123.33,123.28,0.7]
[1766500357378,13.60655821,123.33,123.28,15.5]
[1766500357590,4.78786136,123.31,123.26,13.60061047]
[1766500357802,0.71,123.32,123.27,14.8]
[1766500358096,8.10869685,123.33,123.27,14.8]
[1766500358097,5.49786136,123.31,123.27,14.8]
[1766500358268,5.49786136,123.29,123.25,0.2]
[1766500358472,4.78786136,123.26,123.25,0.2]
[1766500359074,10.43767296,123.3,123.25,0.2]
[1766500359397,4.78786136,123.26,123.25,0.2]
[1766500359784,4.78786136,123.27,123.25,0.2]
[1766500360175,0.71,123.28,123.25,0.2]
[1766500360374,4.78786136,123.27,123.25,0.2]
[1766500360576,4.78786136,123.3,123.26,0.7]
[1766500360776,4.78786136,123.29,123.25,0.2]
[1766500360986,4.78786136,123.27,123.25,0.2]
[1766500361482,5.49786136,123.26,123.21,8.11576499]
[1766500361799,11.14767296,123.26,123.21,22.9162201]
[1766500361996,4.78786136,123.27,123.23,8.81447005]
[1766500362298,10.43767296,123.28,123.24,12.90205371]
[1766500362599,10.43767296,123.28,123.25,8.1135657]
[1766500362787,8.81989052,123.31,123.26,0.7]
[1766500363107,40.53638952,123.35,123.26,0.7]
[1766500363108,5.49786136,123.34,123.27,15.5]
[1766500363282,5.49786136,123.34,123.29,13.59823421]
[1766500363476,13.60568344,123.34,123.29,8.81037285]
[1766500363681,4.78786136,123.32,123.28,0.7]
[1766500364091,4.78786136,123.3,123.27,14.8]
[1766500364496,0.71,123.31,123.27,27.70006396]
[1766500364696,4.78786136,123.34,123.29,13.59869339]
[1766500365006,4.78786136,123.33,123.29,0.7]
[1766500365206,5.49786136,123.34,123.29,5.48786136]
[1766500365403,12.89618861,123.33,123.28,4.78786136]
[1766500365607,13.60618861,123.33,123.28,4.78786136]
[1766500365834,13.60618861,123.33,123.27,14.8]
[1766500365835,10.43767296,123.35,123.29,8.11083206]
[1766500365985,8.10482542,123.39,123.34,4.78786136]
[1766500366183,5.49786136,123.35,123.31,14.8]
[1766500367120,5.49786136,123.33,123.28,14.8]
[1766500367328,12.89696793,123.32,123.28,14.8]
[1766500367517,5.44786136,123.31,123.26,15.5]
[1766500367719,0.66,123.29,123.24,4.78786136]
[1766500367921,4.78786136,123.3,123.25,4.78786136]
[1766500368121,18.54677953,123.32,123.27,4.78786136]
[1766500368312,18.54618794,123.33,123.28,4.78786136]
[1766500368513,4.78786136,123.32,123.27,20.27786136]
[1766500368823,23.3340493,123.33,123.29,0.69]
[1766500369017,14.82,123.38,123.29,5.47786136]
[1766500369234,8.1056983,123.37,123.32,4.78786136]
[1766500369403,13.55355966,123.37,123.31,13.58742907]
[1766500369605,10.43767296,123.36,123.31,13.58742907]
[1766500369834,11.09767296,123.36,123.31,0.69]
[1766500370117,11.09767296,123.36,123.31,13.58737305]
[1766500370312,15.88553432,123.36,123.31,5.47786136]
[1766500370700,15.88553432,123.34,123.29,14.8]
[1766500370904,10.43767296,123.34,123.3,4.78786136]
[1766500371100,4.78786136,123.33,123.28,8.11141299]
[1766500371406,5.44786136,123.33,123.28,14.8]
[1766500371606,4.78786136,123.31,123.27,0.69]
[1766500371812,4.78786136,123.31,123.24,10.43767296]
[1766500372125,15.88553432,123.25,123.19,0.69]
[1766500372298,15.88553432,123.25,123.19,15.49]
[1766500372299,4.78786136,123.23,123.19,15.49]
[1766500373031,0.66,123.24,123.19,23.60741451]
[1766500373325,4.78786136,123.23,123.19,15.49]
[1766500373528,4.78786136,123.21,123.19,14.8]
[1766500373738,4.78786136,123.22,123.17,8.11878565]
[1766500373931,5.44786136,123.22,123.17,28.39664701]
[1766500374239,8.77451025,123.24,123.18,13.59593674]
[1766500374439,5.44786136,123.22,123.17,22.91859525]
[1766500374754,4.78786136,123.19,123.15,0.2]
[1766500374907,0.66,123.2,123.15,0.2]
[1766500375107,10.43767296,123.21,123.15,0.2]
[1766500375313,4.78786136,123.21,123.16,0.69]
[1766500375519,4.78786136,123.2,123.15,4.98786136]
[1766500375720,5.44786136,123.2,123.15,13.10794662]
[1766500376003,0.66,123.2,123.15,13.10794662]
[1766500376204,24.00251717,123.2,123.15,4.98786136]
[1766500376435,24.00251717,123.2,123.15,8.32014834]
[1766500376628,10.43767296,123.2,123.16,0.69]
[1766500376828,15.22553432,123.2,123.15,0.2]
[1766500377129,18.55480552,123.2,123.15,13.79799689]
[1766500377329,10.43767296,123.2,123.15,13.79799689]
[1766500377638,10.43767296,123.2,123.17,0.69]
[1766500377848,24.0024263,123.2,123.16,14.82]
[1766500378351,4.78786136,123.18,123.16,14.82]
[1766500378635,10.43767296,123.2,123.16,15.51]
[1766500378931,23.34243902,123.2,123.16,15.51]
[1766500379235,5.44786136,123.17,123.15,1e-08]
[1766500379405,15.22553432,123.16,123.15,1e-08]
[1766500379612,23.34505364,123.16,123.15,1e-08]
[1766500379808,10.43767296,123.16,123.15,1e-08]
[1766500380206,14.82,123.2,123.15,1e-08]
[1766500380431,10.43767296,123.19,123.15,19.60786137]
[1766500380735,4.78786136,123.17,123.15,14.82000001]
[1766500380933,15.22553432,123.19,123.15,14.82000001]
[1766500381116,15.22553432,123.19,123.15,15.51000001]
[1766500381440,4.78786136,123.18,123.15,14.82000001]
[1766500381638,8.11777262,123.19,123.15,1e-08]
[1766500381817,8.11490708,123.23,123.18,4.78786136]
[1766500382005,12.90276844,123.23,123.18,5.47786136]
[1766500382209,12.90276844,123.23,123.18,0.69]
[1766500382639,8.11490708,123.23,123.18,0.69]
[1766500382842,4.78786136,123.24,123.19,5.47786136]
[1766500383133,4.78786136,123.23,123.15,1e-08]
[1766500383334,4.78786136,123.2,123.16,14.82]
[1766500383537,20.94233003,123.26,123.16,14.82]
[1766500383739,10.43767296,123.23,123.18,8.80802891]
[1766500384048,4.78786136,123.22,123.16,23.62907989]
[1766500384335,24.00066399,123.23,123.18,4.78786136]
[1766500384536,10.43767296,123.23,123.19,4.78786136]
[1766500384711,4.78786136,123.22,123.16,35.80784296]
[1766500384912,4.78786136,123.21,123.16,28.41712054]
[1766500385147,5.44786136,123.22,123.17,8.8088461]
[1766500385323,5.44786136,123.22,123.17,8.8088123]
[1766500385529,5.44786136,123.22,123.17,13.59667366]
[1766500385858,5.44786136,123.2,123.16,14.82]
[1766500386546,4.78786136,123.2,123.15,4.78786137]
[1766500386737,5.45786136,123.2,123.15,1e-08]
[1766500386919,4.78786136,123.19,123.15,1e-08]
[1766500387121,29.07507169,123.22,123.16,0.69]
[1766500387320,4.78786136,123.2,123.15,1e-08]
[1766500387518,4.78786136,123.16,123.15,1e-08]
[1766500387721,4.78786136,123.16,123.12,0.2]
[1766500387722,23.34505364,123.16,123.12,0.2]
[1766500387921,4.78786136,123.14,123.12,0.2]
[1766500388209,4.78786136,123.15,123.12,0.2]
[1766500388416,18.55719228,123.16,123.12,0.2]
[1766500388634,4.78786136,123.15,123.12,0.2]
[1766500389538,24.01505364,123.16,123.12,0.2]
[1766500389721,12.90823429,123.15,123.12,0.2]
[1766500389925,4.78786136,123.14,123.12,0.2]
[1766500390236,4.78786136,123.13,123.12,0.2]
[1766500390444,4.78786136,123.14,123.12,0.2]
[1766500390814,4.78786136,123.14,123.12,1e-08]
[1766500390815,4.78786136,123.13,123.12,1e-08]
[1766500391011,5.45786136,123.13,123.12,1e-08]
[1766500391234,5.45786136,123.13,123.09,14.82]
[1766500391423,4.78786136,123.12,123.09,14.82]
[1766500391618,8.12037293,123.15,123.11,4.78786136]
[1766500391934,4.78786136,123.13,123.08,8.81466453]
[1766500392148,4.78786136,123.11,123.06,8.81597035]
[1766500392331,4.78786136,123.1,123.06,15.51]
[1766500392839,4.78786136,123.09,123.04,4.61994037]
[1766500393027,15.89553432,123.09,123.04,12.74722079]
[1766500393229,10.43767296,123.09,123.05,0.69]
[1766500393433,4.78786136,123.1,123.05,13.60448616]
[1766500393625,4.78786136,123.08,123.04,4.61994037]
[1766500393820,4.78786136,123.06,123.04,4.61994037]
[1766500394044,4.78786136,123.05,123.04,4.61994037]
[1766500394216,4.78786136,123.05,123.0,0.1]
[1766500394541,10.43767296,123.05,123.0,0.1]
[1766500394724,11.10767296,123.05,123.0,0.1]
[1766500395246,15.89553432,123.05,123.0,0.1]
[1766500395425,4.78786136,123.07,123.03,0.69]
[1766500395632,24.01990139,123.09,123.04,8.81731043]
[1766500395934,12.91154926,123.1,123.04,13.60517179]
[1766500396324,12.91154926,123.1,123.04,0.69]
[1766500396325,4.78786136,123.09,123.04,0.69]
[1766500396526,4.78786136,123.08,123.04,0.69]
[1766500396838,8.7936879,123.1,123.04,13.6050977]
[1766500397028,4.78786136,123.09,123.04,13.6050977]
[1766500397235,4.78786136,123.09,123.04,0.69]
[1766500397921,8.12469714,123.09,123.04,0.69]
[1766500398249,15.89553432,123.06,123.02,14.82]
[1766500398448,4.78786136,123.05,123.0,0.79]
[1766500398765,10.43767296,123.06,123.01,5.47786136]
[1766500399054,4.78786136,123.05,123.01,0.69]
[1766500399863,8.12875955,123.02,123.0,0.1]
[1766500400029,18.56593204,123.03,123.0,0.1]
[1766500400228,23.3537934,123.03,123.0,0.1]
[1766500400644,12.9139787,123.06,123.0,5.57786136]
[1766500400855,4.78786136,123.04,123.0,0.1]
[1766500401156,15.22553432,123.03,123.0,0.1]
[1766500401354,0.67,123.01,122.98,0.1]
[1766500401656,10.43767296,123.02,122.98,0.1]
[1766500402256,7.82905019,123.03,122.99,0.69]
[1766500402548,7.82905019,123.02,122.99,0.69]
[1766500403139,7.82905019,123.02,122.98,0.1]
[1766500403353,10.43767296,123.01,122.98,0.1]
[1766500403538,7.82905019,123.0,122.98,0.1]
[1766500403850,10.43767296,123.01,122.98,0.1]
[1766500404151,10.43767296,123.04,122.99,0.69]
[1766500404359,18.93672315,123.05,123.0,8.51905019]
[1766500404551,18.93672315,123.05,123.0,0.69]
[1766500404728,7.82905019,123.04,122.98,0.79]
[1766500404936,0.67,123.05,122.98,23.45905019]
[1766500405133,7.82905019,123.02,122.98,15.63]
[1766500405332,10.43767296,123.03,122.98,14.94]
[1766500405635,8.49905019,123.02,122.98,14.94]
[1766500405953,27.06350707,123.05,123.0,16.64913149]
[1766500406133,7.82905019,123.04,123.0,0.69]
[1766500406330,19.23445688,123.05,123.0,0.69]
[1766500406530,7.82905019,123.05,123.0,8.51905019]
[1766500407153,8.12613966,123.06,123.01,0.69]
[1766500407355,15.95518985,123.06,123.01,0.69]
[1766500407537,7.82905019,123.04,122.99,8.82066086]
[1766500407738,8.12613966,123.06,123.0,7.82905019]
[1766500407945,10.43767296,123.05,123.01,8.51905019]
[1766500408157,10.43767296,123.05,123.01,15.53]
[1766500408158,26.39366913,123.05,123.01,15.53]
[1766500408534,7.82905019,123.03,122.98,8.92090669]
[1766500408741,7.82905019,123.03,122.99,14.84]
[1766500409046,7.82905019,123.04,122.99,31.48977503]
[1766500409649,7.82905019,123.04,122.99,15.53]
[1766500409855,8.49905019,123.04,122.99,23.66074146]
[1766500410157,16.6270176,123.04,122.99,15.53]
[1766500410456,15.9570176,123.04,122.99,31.48962397]
[1766500410660,10.43767296,123.05,123.03,7.82905019]
[1766500410842,8.12505014,123.08,123.03,8.51905019]
[1766500411045,7.82905019,123.08,123.03,8.51905019]
[1766500412249,7.82905019,123.06,123.02,14.84]
[1766500412447,15.95450724,123.07,123.02,0.69]
[1766500412649,8.12507111,123.08,123.04,0.69]
[1766500412961,8.80507111,123.08,123.02,8.83854649]
[1766500413140,7.82905019,123.07,123.02,8.53905019]
[1766500413866,8.80507111,123.08,123.02,16.66761352]
[1766500414058,19.24198814,123.09,123.03,16.66696414]
[1766500414360,15.9528142,123.1,123.05,8.53905019]
[1766500414561,0.68,123.14,123.08,7.82905019]
[1766500414761,72.13718311,123.27,123.04,22.96737736]
[1766500414762,0.68,123.18,123.11,7.82905019]
[1766500414962,0.68,123.18,123.13,8.53905019]
[1766500414963,7.82905019,123.18,123.13,8.53905019]
[1766500415163,10.43767296,123.17,123.13,23.37905019]
[1766500415465,7.82905019,123.15,123.1,0.71]
[1766500415764,7.82905019,123.15,123.09,10.43767296]
[1766500415765,7.82905019,123.13,123.09,14.84]
[1766500416083,10.43767296,123.15,123.1,8.53905019]
[1766500416446,8.11996577,123.16,123.12,7.82905019]
[1766500416666,7.82905019,123.17,123.12,0.71]
[1766500416871,7.82905019,123.15,123.1,7.82905019]
[1766500417169,7.82905019,123.15,123.09,23.37905019]
[1766500417170,7.82905019,123.14,123.09,23.37905019]
[1766500417341,11.14767296,123.15,123.1,0.71]
[1766500417540,8.11824984,123.18,123.12,8.53905019]
[1766500417745,7.82905019,123.17,123.12,8.53905019]
[1766500418047,16.65730003,123.18,123.13,7.82905019]
[1766500418275,8.82824984,123.18,123.12,0.71]
[1766500418449,15.94848529,123.17,123.12,8.53905019]
[1766500418648,8.1194351,123.17,123.12,16.66115717]
[1766500418871,31.44317547,123.18,123.12,16.66115717]
[1766500418872,27.0950456,123.18,123.13,23.37905019]
[1766500419062,10.43767296,123.18,123.14,0.71]
[1766500419257,7.82905019,123.21,123.16,0.71]
[1766500419462,8.53905019,123.21,123.16,8.53905019]
[1766500419657,7.82905019,123.2,123.13,25.27767296]
[1766500419947,18.97672315,123.21,123.16,0.71]
[1766500420365,18.97672315,123.21,123.13,14.84]
[1766500420366,8.117542,123.19,123.14,8.53905019]
[1766500420564,15.94659219,123.19,123.14,16.65987494]
[1766500420769,16.65616473,123.2,123.15,0.71]
[1766500420954,7.82905019,123.18,123.13,23.37905019]
[1766500421378,15.94616473,123.2,123.14,7.82905019]
[1766500421557,15.94616473,123.2,123.16,0.71]
[1766500421957,8.53905019,123.19,123.14,0.71]
[1766500422160,7.82905019,123.18,123.13,7.82905019]
[1766500422363,7.82905019,123.18,123.11,8.12258284]
[1766500422364,7.82905019,123.15,123.11,14.84]
[1766500422563,18.26672315,123.17,123.13,0.71]
[1766500422771,18.26672315,123.17,123.12,7.82905019]
[1766500423076,7.82905019,123.16,123.11,14.84]
[1766500423286,7.82905019,123.16,123.11,15.55]
[1766500423454,7.82905019,123.16,123.11,23.37905019]
[1766500423954,7.82905019,123.16,123.11,15.55]
[1766500424153,39.56405065,123.17,123.11,15.55]
[1766500424350,7.82905019,123.16,123.11,15.55]
[1766500424556,10.43767296,123.16,123.12,8.53905019]
[1766500424755,15.94746265,123.18,123.14,0.71]
[1766500424965,26.38513561,123.18,123.14,0.71]
[1766500426168,26.38513561,123.18,123.1,8.12320824]
[1766500426169,7.82905019,123.15,123.1,8.12320824]
[1766500426355,7.82905019,123.15,123.11,14.82]
[1766500426560,8.53905019,123.14,123.11,14.82]
[1766500426862,7.82905019,123.13,123.11,14.82]
[1766500427278,7.82905019,123.12,123.06,18.26672315]
[1766500427577,7.82905019,123.09,123.05,15.53]
[1766500427775,10.43767296,123.12,123.06,0.71]
[1766500427776,7.82905019,123.1,123.06,0.71]
[1766500427980,7.82905019,123.07,123.05,14.82]